[Event "Live Chess"]
[Site "Chess.com"]
[Date "2024.06.02"]
[Round "-"]
[White "Brooms1989"]
[Black "AnotherOneBadPlayer"]
[Result "0-1"]
[WhiteElo "1156"]
[BlackElo "2198"]
[TimeControl "300"]
[EndTime "2:01:35 PDT"]
[Termination "AnotherOneBadPlayer won by resignation"]

1. e4 {[%clk 0:04:57]} 1... c5 {[%clk 0:04:57.3]} 2. Be2 {[%clk 0:04:55.5]} 2...
Nc6 {[%clk 0:04:55.8]} 3. d3 {[%clk 0:04:53.3]} 3... g6 {[%clk 0:04:54.4]} 4. f4
{[%clk 0:04:52.8]} 4... Bg7 {[%clk 0:04:53]} 5. Nf3 {[%clk 0:04:52.4]} 5... d6
{[%clk 0:04:48.2]} 6. O-O {[%clk 0:04:51.6]} 6... Nf6 {[%clk 0:04:47]} 7. c3
{[%clk 0:04:49.3]} 7... O-O {[%clk 0:04:44.3]} 8. Kh1 {[%clk 0:04:48.3]} 8... b5
{[%clk 0:04:40.5]} 9. a3 {[%clk 0:04:46.3]} 9... a5 {[%clk 0:04:39]} 10. Qe1
{[%clk 0:04:43.8]} 10... Bb7 {[%clk 0:04:37.6]} 11. Qh4 {[%clk 0:04:40.9]} 11...
c4 {[%clk 0:04:26.5]} 12. f5 {[%clk 0:04:36.8]} 12... cxd3 {[%clk 0:04:22]} 13.
Bxd3 {[%clk 0:04:30.1]} 13... b4 {[%clk 0:04:20.4]} 14. fxg6 {[%clk 0:04:27.6]}
14... fxg6 {[%clk 0:04:10.6]} 15. Bh6 {[%clk 0:04:25.7]} 15... Ne5 {[%clk
0:03:59.1]} 16. Bxg7 {[%clk 0:04:12.5]} 16... Nxf3 {[%clk 0:03:54]} 17. Rxf3
{[%clk 0:04:08.9]} 17... Kxg7 {[%clk 0:03:52.1]} 18. Nd2 {[%clk 0:03:58.8]}
18... bxc3 {[%clk 0:03:25.7]} 19. bxc3 {[%clk 0:03:52.4]} 19... Qc7 {[%clk
0:02:53.9]} 20. c4 {[%clk 0:03:40.6]} 20... Qc5 {[%clk 0:02:34.6]} 21. Raf1
{[%clk 0:03:29.3]} 21... Qh5 {[%clk 0:02:18]} 22. Qxh5 {[%clk 0:03:18.7]} 22...
Nxh5 {[%clk 0:02:15.1]} 23. Rxf8 {[%clk 0:03:11.9]} 23... Rxf8 {[%clk
0:02:13.7]} 24. Rxf8 {[%clk 0:03:11.5]} 24... Kxf8 {[%clk 0:02:13.6]} 25. Nb3
{[%clk 0:03:09.8]} 25... a4 {[%clk 0:02:10.7]} 26. Nd4 {[%clk 0:03:08.3]} 26...
Nf4 {[%clk 0:02:03]} 27. Bc2 {[%clk 0:02:59.7]} 27... e5 {[%clk 0:01:54.5]} 28.
Nb5 {[%clk 0:02:54.6]} 28... Ke7 {[%clk 0:01:52.1]} 29. g3 {[%clk 0:02:51.2]}
29... Ne6 {[%clk 0:01:46.7]} 30. Kg1 {[%clk 0:02:47.2]} 30... Nc5 {[%clk
0:01:45.3]} 31. Kf2 {[%clk 0:02:44.7]} 31... Bxe4 {[%clk 0:01:44]} 32. Bxe4
{[%clk 0:02:39.9]} 32... Nxe4+ {[%clk 0:01:43.1]} 33. Ke3 {[%clk 0:02:39]} 33...
Nc5 {[%clk 0:01:39.8]} 34. Kd2 {[%clk 0:02:31]} 34... Ke6 {[%clk 0:01:33]} 35.
Kc3 {[%clk 0:02:28.7]} 35... h5 {[%clk 0:01:09.7]} 36. Kb4 {[%clk 0:02:26.2]}
36... e4 {[%clk 0:01:07.3]} 37. Nc3 {[%clk 0:02:24.8]} 37... e3 {[%clk 0:01:04]}
38. Ne2 {[%clk 0:02:20.2]} 38... g5 {[%clk 0:00:59.4]} 39. Kb5 {[%clk
0:02:12.7]} 39... Ke5 {[%clk 0:00:54.8]} 40. Kc6 {[%clk 0:02:09.7]} 40... h4
{[%clk 0:00:45]} 41. gxh4 {[%clk 0:02:01.5]} 41... gxh4 {[%clk 0:00:44.1]} 42.
h3 {[%clk 0:02:00.8]} 42... Ne4 {[%clk 0:00:42.2]} 43. Kb5 {[%clk 0:01:53.5]}
43... Nc5 {[%clk 0:00:37.6]} 44. Kc6 {[%clk 0:01:51.9]} 44... Nb3 {[%clk
0:00:33.1]} 45. Kb5 {[%clk 0:01:46.5]} 45... Nd4+ {[%clk 0:00:32.1]} 0-1

[Event "Live Chess"]
[Site "Chess.com"]
[Date "2024.06.02"]
[Round "-"]
[White "Eva3337"]
[Black "elephantgerrald"]
[Result "1-0"]
[WhiteElo "1183"]
[BlackElo "847"]
[TimeControl "300"]
[EndTime "2:01:52 PDT"]
[Termination "Eva3337 won by checkmate"]

1. e4 {[%clk 0:04:56.6]} 1... e5 {[%clk 0:04:58.9]} 2. Nf3 {[%clk 0:04:55.3]}
2... Nc6 {[%clk 0:04:57.4]} 3. c3 {[%clk 0:04:54.3]} 3... Nf6 {[%clk 0:04:54.6]}
4. Bd3 {[%clk 0:04:53.3]} 4... Bc5 {[%clk 0:04:51.7]} 5. Bc2 {[%clk 0:04:51.4]}
5... Ng4 {[%clk 0:04:47]} 6. O-O {[%clk 0:04:48.5]} 6... O-O {[%clk 0:04:41.8]}
7. h3 {[%clk 0:04:47.2]} 7... Nxf2 {[%clk 0:04:18.7]} 8. Rxf2 {[%clk 0:04:45.4]}
8... Bxf2+ {[%clk 0:04:17.8]} 9. Kxf2 {[%clk 0:04:44]} 9... d6 {[%clk
0:04:14.7]} 10. d4 {[%clk 0:04:40.1]} 10... exd4 {[%clk 0:04:12.1]} 11. Nxd4
{[%clk 0:04:39.4]} 11... Nxd4 {[%clk 0:04:10.8]} 12. cxd4 {[%clk 0:04:39.1]}
12... Qf6+ {[%clk 0:04:09.5]} 13. Kg1 {[%clk 0:04:36]} 13... Qxd4+ {[%clk
0:04:08.1]} 14. Qxd4 {[%clk 0:04:34.4]} 14... c5 {[%clk 0:04:04.5]} 15. Qxd6
{[%clk 0:04:31.3]} 15... Be6 {[%clk 0:03:35.8]} 16. Be3 {[%clk 0:04:10.8]} 16...
h6 {[%clk 0:03:32.3]} 17. Qxc5 {[%clk 0:04:07]} 17... Rac8 {[%clk 0:03:23.9]}
18. Qxa7 {[%clk 0:03:50.9]} 18... Rxc2 {[%clk 0:03:10.6]} 19. Nc3 {[%clk
0:03:49.5]} 19... Rxb2 {[%clk 0:02:56.1]} 20. Nd5 {[%clk 0:03:42.4]} 20... Bxd5
{[%clk 0:02:54.6]} 21. exd5 {[%clk 0:03:40.5]} 21... Re8 {[%clk 0:02:53.1]} 22.
Bd4 {[%clk 0:03:36.8]} 22... Ree2 {[%clk 0:02:50.1]} 23. Bxb2 {[%clk 0:03:35.2]}
23... Rxb2 {[%clk 0:02:47.6]} 24. Qb8+ {[%clk 0:03:28.6]} 24... Kh7 {[%clk
0:02:45.6]} 25. d6 {[%clk 0:03:27]} 25... Rxg2+ {[%clk 0:02:40.7]} 26. Kxg2
{[%clk 0:03:25.2]} 26... f5 {[%clk 0:02:40.6]} 27. d7 {[%clk 0:03:23.8]} 27...
g5 {[%clk 0:02:40.5]} 28. Qd6 {[%clk 0:03:18.8]} 28... b5 {[%clk 0:02:40.4]} 29.
d8=Q {[%clk 0:03:15.9]} 29... Kg7 {[%clk 0:02:36]} 30. Q8c7+ {[%clk 0:03:15.8]}
30... Kg8 {[%clk 0:02:34.1]} 31. Qdd8# {[%clk 0:03:15.7]} 1-0

[Event "Live Chess"]
[Site "Chess.com"]
[Date "2024.06.02"]
[Round "-"]
[White "DavrosLight"]
[Black "blunderabit"]
[Result "0-1"]
[WhiteElo "787"]
[BlackElo "1774"]
[TimeControl "300"]
[EndTime "2:02:03 PDT"]
[Termination "blunderabit won by checkmate"]

1. e4 {[%clk 0:04:56.6]} 1... c5 {[%clk 0:04:57.9]} 2. Nf3 {[%clk 0:04:54.4]}
2... d6 {[%clk 0:04:54.9]} 3. h3 {[%clk 0:04:52.3]} 3... Nc6 {[%clk 0:04:52]} 4.
Nc3 {[%clk 0:04:49.3]} 4... g6 {[%clk 0:04:49]} 5. d4 {[%clk 0:04:45.7]} 5...
cxd4 {[%clk 0:04:47.6]} 6. Nxd4 {[%clk 0:04:43.5]} 6... Bg7 {[%clk 0:04:47.1]}
7. Nxc6 {[%clk 0:04:41.9]} 7... bxc6 {[%clk 0:04:45]} 8. Bd2 {[%clk 0:04:35.8]}
8... Nf6 {[%clk 0:04:38.6]} 9. Bd3 {[%clk 0:04:29.7]} 9... Rb8 {[%clk
0:04:36.1]} 10. O-O {[%clk 0:04:24]} 10... Rxb2 {[%clk 0:04:31.8]} 11. Bc1
{[%clk 0:04:12.4]} 11... Rb8 {[%clk 0:04:28.9]} 12. Bg5 {[%clk 0:04:05.7]} 12...
h6 {[%clk 0:04:20.3]} 13. Bf4 {[%clk 0:03:55.6]} 13... Qa5 {[%clk 0:04:06.7]}
14. Bd2 {[%clk 0:03:50.5]} 14... Qc7 {[%clk 0:04:02.7]} 15. f3 {[%clk
0:03:44.2]} 15... O-O {[%clk 0:04:00.1]} 16. Qe2 {[%clk 0:03:38.8]} 16... Be6
{[%clk 0:03:51.4]} 17. Rfe1 {[%clk 0:03:27.2]} 17... Nd7 {[%clk 0:03:48.5]} 18.
Kh2 {[%clk 0:03:23.8]} 18... Nc5 {[%clk 0:03:45.1]} 19. g4 {[%clk 0:03:07.1]}
19... Kh7 {[%clk 0:03:42.4]} 20. a4 {[%clk 0:02:58.7]} 20... Rb2 {[%clk
0:03:39.5]} 21. Bc1 {[%clk 0:02:51]} 21... Bxc3 {[%clk 0:03:36.4]} 22. Bxb2
{[%clk 0:02:45.1]} 22... Bxb2 {[%clk 0:03:35.1]} 23. Rab1 {[%clk 0:02:34.7]}
23... Be5+ {[%clk 0:03:34.2]} 24. Kg2 {[%clk 0:02:25.3]} 24... Rb8 {[%clk
0:03:33.6]} 25. Rxb8 {[%clk 0:02:22.9]} 25... Qxb8 {[%clk 0:03:31.8]} 26. Bc4
{[%clk 0:02:13.5]} 26... Qb2 {[%clk 0:03:27.7]} 27. Bxe6 {[%clk 0:02:09.4]}
27... Nxe6 {[%clk 0:03:26.2]} 28. Qf2 {[%clk 0:01:50.8]} 28... Nd4 {[%clk
0:03:19.8]} 29. c4 {[%clk 0:01:34.9]} 29... Qa3 {[%clk 0:03:08.5]} 30. h4 {[%clk
0:01:13.1]} 30... Ne6 {[%clk 0:02:50.7]} 31. Qxa7 {[%clk 0:01:06.1]} 31... Nf4+
{[%clk 0:02:47.9]} 32. Kg1 {[%clk 0:00:51.9]} 32... Qxf3 {[%clk 0:02:43.4]} 33.
Qf2 {[%clk 0:00:40.8]} 33... Bd4 {[%clk 0:02:41.3]} 34. Re3 {[%clk 0:00:33.3]}
34... Bxe3 {[%clk 0:02:38.7]} 35. Qxe3 {[%clk 0:00:31.3]} 35... Qg2# {[%clk
0:02:37.1]} 0-1

[Event "Live Chess"]
[Site "Chess.com"]
[Date "2024.06.02"]
[Round "-"]
[White "Zhevzh1k7"]
[Black "seasidecastle27"]
[Result "1-0"]
[WhiteElo "1113"]
[BlackElo "1915"]
[TimeControl "300"]
[EndTime "2:02:43 PDT"]
[Termination "Zhevzh1k7 won by checkmate"]

1. e4 {[%clk 0:04:57.7]} 1... e6 {[%clk 0:04:59.2]} 2. d4 {[%clk 0:04:55.6]}
2... d5 {[%clk 0:04:58.1]} 3. exd5 {[%clk 0:04:55.5]} 3... exd5 {[%clk 0:04:57]}
4. Nc3 {[%clk 0:04:53.6]} 4... Nf6 {[%clk 0:04:56.1]} 5. Nf3 {[%clk 0:04:52.8]}
5... Be7 {[%clk 0:04:54.6]} 6. Be2 {[%clk 0:04:51.6]} 6... O-O {[%clk
0:04:52.9]} 7. O-O {[%clk 0:04:51]} 7... Bg4 {[%clk 0:04:51.7]} 8. Bg5 {[%clk
0:04:48.1]} 8... c6 {[%clk 0:04:50.7]} 9. h3 {[%clk 0:04:42.3]} 9... Bh5 {[%clk
0:04:48.5]} 10. Qd3 {[%clk 0:04:30.8]} 10... Bg6 {[%clk 0:04:44.9]} 11. Qd2
{[%clk 0:04:27.5]} 11... Nbd7 {[%clk 0:04:41.4]} 12. Ne5 {[%clk 0:04:22.7]}
12... Re8 {[%clk 0:04:31.9]} 13. Nxg6 {[%clk 0:04:18.7]} 13... hxg6 {[%clk
0:04:28.3]} 14. Bxf6 {[%clk 0:04:13.5]} 14... Bxf6 {[%clk 0:04:25.7]} 15. Rfe1
{[%clk 0:04:09.6]} 15... Qc7 {[%clk 0:04:19.9]} 16. Bg4 {[%clk 0:04:03.2]} 16...
Nf8 {[%clk 0:04:13.2]} 17. Re2 {[%clk 0:03:56.3]} 17... Rxe2 {[%clk 0:04:01.1]}
18. Nxe2 {[%clk 0:03:48.9]} 18... Re8 {[%clk 0:03:59.1]} 19. Re1 {[%clk
0:03:46.5]} 19... Qe7 {[%clk 0:03:55.2]} 20. Kf1 {[%clk 0:03:38.9]} 20... Bg5
{[%clk 0:03:42.3]} 21. f4 {[%clk 0:03:20.6]} 21... Bh4 {[%clk 0:03:30.4]} 22. g3
{[%clk 0:03:18.6]} 22... Bf6 {[%clk 0:03:15.7]} 23. c3 {[%clk 0:03:08.9]} 23...
Qe4 {[%clk 0:03:13.7]} 24. Ng1 {[%clk 0:02:58.9]} 24... Qxe1+ {[%clk 0:03:02.8]}
25. Qxe1 {[%clk 0:02:57.8]} 25... Rxe1+ {[%clk 0:03:01.5]} 26. Kxe1 {[%clk
0:02:57.7]} 26... Ne6 {[%clk 0:02:54.4]} 27. Ke2 {[%clk 0:02:52.9]} 27... Kf8
{[%clk 0:02:52.9]} 28. Nf3 {[%clk 0:02:50.8]} 28... Ke8 {[%clk 0:02:51]} 29. Kd3
{[%clk 0:02:49.2]} 29... Kd8 {[%clk 0:02:38.5]} 30. h4 {[%clk 0:02:38.4]} 30...
Be7 {[%clk 0:02:36.5]} 31. Ne5 {[%clk 0:02:31.3]} 31... f5 {[%clk 0:02:17]} 32.
Bh3 {[%clk 0:02:23.5]} 32... Nf8 {[%clk 0:02:15.3]} 33. c4 {[%clk 0:02:12.2]}
33... dxc4+ {[%clk 0:02:10]} 34. Kxc4 {[%clk 0:02:12.1]} 34... Bf6 {[%clk
0:02:05.6]} 35. b4 {[%clk 0:02:01.8]} 35... Kc7 {[%clk 0:01:58.9]} 36. Kc5
{[%clk 0:01:56.1]} 36... b6+ {[%clk 0:01:56.6]} 37. Kc4 {[%clk 0:01:54.6]} 37...
a6 {[%clk 0:01:48.1]} 38. a4 {[%clk 0:01:52.3]} 38... Kd6 {[%clk 0:01:43.5]} 39.
Bg2 {[%clk 0:01:44.4]} 39... Bxe5 {[%clk 0:01:33.9]} 40. fxe5+ {[%clk 0:01:42]}
40... Kd7 {[%clk 0:01:26.2]} 41. d5 {[%clk 0:01:39.1]} 41... cxd5+ {[%clk
0:01:22.5]} 42. Kxd5 {[%clk 0:01:37.4]} 42... Ne6 {[%clk 0:01:19.3]} 43. Bf1
{[%clk 0:01:30.8]} 43... Nc7+ {[%clk 0:01:13.5]} 44. Kd4 {[%clk 0:01:26.9]}
44... Ke6 {[%clk 0:01:09.8]} 45. b5 {[%clk 0:01:15.3]} 45... axb5 {[%clk
0:01:05.8]} 46. Bxb5 {[%clk 0:01:11.4]} 46... Ke7 {[%clk 0:00:49.7]} 47. Be2
{[%clk 0:00:58.7]} 47... Ne6+ {[%clk 0:00:41.8]} 48. Kd5 {[%clk 0:00:53.7]}
48... Nc5 {[%clk 0:00:38.9]} 49. Bb5 {[%clk 0:00:48.1]} 49... Ne4 {[%clk
0:00:35.9]} 50. Kc6 {[%clk 0:00:42.7]} 50... Nxg3 {[%clk 0:00:26.9]} 51. Kxb6
{[%clk 0:00:41.6]} 51... f4 {[%clk 0:00:21.7]} 52. a5 {[%clk 0:00:37.5]} 52...
Ne4 {[%clk 0:00:13.6]} 53. a6 {[%clk 0:00:36.5]} 53... f3 {[%clk 0:00:06.2]} 54.
a7 {[%clk 0:00:35.1]} 54... f2 {[%clk 0:00:05.3]} 55. a8=Q {[%clk 0:00:33.7]}
55... g5 {[%clk 0:00:03.4]} 56. Qe8# {[%clk 0:00:33.2]} 1-0

[Event "Live Chess"]
[Site "Chess.com"]
[Date "2024.06.02"]
[Round "-"]
[White "StoreySniper"]
[Black "ACM42"]
[Result "1-0"]
[WhiteElo "2514"]
[BlackElo "2165"]
[TimeControl "300"]
[EndTime "2:03:07 PDT"]
[Termination "StoreySniper won by resignation"]

1. e4 {[%clk 0:04:55.4]} 1... e6 {[%clk 0:04:57.6]} 2. d4 {[%clk 0:04:53.1]}
2... d5 {[%clk 0:04:56.1]} 3. Nd2 {[%clk 0:04:52.6]} 3... Nf6 {[%clk 0:04:55.2]}
4. e5 {[%clk 0:04:51.6]} 4... Nfd7 {[%clk 0:04:53.5]} 5. f4 {[%clk 0:04:51]}
5... c5 {[%clk 0:04:52.2]} 6. c3 {[%clk 0:04:49.7]} 6... Nc6 {[%clk 0:04:50]} 7.
Ndf3 {[%clk 0:04:48.7]} 7... Qb6 {[%clk 0:04:35.6]} 8. Nh3 {[%clk 0:04:45.2]}
8... a5 {[%clk 0:04:26.6]} 9. Kf2 {[%clk 0:04:37]} 9... f6 {[%clk 0:04:22.5]}
10. Kg3 {[%clk 0:04:35.4]} 10... Be7 {[%clk 0:04:11.8]} 11. Bd3 {[%clk
0:04:32.3]} 11... h5 {[%clk 0:04:01.6]} 12. Qe2 {[%clk 0:04:23.5]} 12... cxd4
{[%clk 0:03:55.2]} 13. cxd4 {[%clk 0:04:21.7]} 13... f5 {[%clk 0:03:44.6]} 14.
Be3 {[%clk 0:04:16.6]} 14... Nb4 {[%clk 0:03:32.8]} 15. Bb1 {[%clk 0:04:09.2]}
15... Qa6 {[%clk 0:03:24.7]} 16. Qd2 {[%clk 0:04:04.1]} 16... Nb6 {[%clk
0:03:20.6]} 17. b3 {[%clk 0:03:57.7]} 17... Bd7 {[%clk 0:03:09.8]} 18. a3 {[%clk
0:03:54.9]} 18... Nc6 {[%clk 0:03:08.1]} 19. Bd3 {[%clk 0:03:41.1]} 19... Qa7
{[%clk 0:03:06.4]} 20. Nhg5 {[%clk 0:03:30.2]} 20... a4 {[%clk 0:03:00.2]} 21.
b4 {[%clk 0:03:28.1]} 21... Nd8 {[%clk 0:02:53.4]} 22. Rhc1 {[%clk 0:03:24.2]}
22... Nf7 {[%clk 0:02:51.5]} 23. h4 {[%clk 0:03:17.2]} 23... Nxg5 {[%clk
0:02:43.4]} 24. Nxg5 {[%clk 0:03:09.8]} 24... Bxg5 {[%clk 0:02:37.6]} 25. hxg5
{[%clk 0:03:06.6]} 25... g6 {[%clk 0:02:34.3]} 26. Kf2 {[%clk 0:03:02.6]} 26...
Ke7 {[%clk 0:02:29.2]} 27. Rc5 {[%clk 0:03:01.3]} 27... Rhc8 {[%clk 0:02:24.4]}
28. Rac1 {[%clk 0:02:55.7]} 28... Bc6 {[%clk 0:02:02.9]} 29. b5 {[%clk
0:02:50.7]} 29... Bd7 {[%clk 0:01:55.7]} 30. Qb4 {[%clk 0:02:48.3]} 30... Qa5
{[%clk 0:01:46.5]} 31. Qb2 {[%clk 0:02:34.3]} 31... Nc4 {[%clk 0:01:31.7]} 32.
Bxc4 {[%clk 0:02:23.8]} 32... Rxc5 {[%clk 0:01:29]} 33. dxc5 {[%clk 0:02:18]}
33... dxc4 {[%clk 0:01:28.3]} 34. c6 {[%clk 0:02:03.5]} 34... bxc6 {[%clk
0:01:26.5]} 35. b6 {[%clk 0:02:02.3]} 35... Qb5 {[%clk 0:00:57.1]} 36. Qc3
{[%clk 0:01:49.8]} 36... Ra5 {[%clk 0:00:15.2]} 37. Rc2 {[%clk 0:01:24.7]} 37...
c5 {[%clk 0:00:10.6]} 38. Rb2 {[%clk 0:01:19.3]} 38... Qa6 {[%clk 0:00:08.9]}
39. b7 {[%clk 0:01:03.8]} 39... Rb5 {[%clk 0:00:07.6]} 40. b8=Q {[%clk
0:01:02.3]} 40... Rxb8 {[%clk 0:00:06.3]} 41. Rxb8 {[%clk 0:01:01.4]} 1-0

[Event "Live Chess"]
[Site "Chess.com"]
[Date "2024.06.02"]
[Round "-"]
[White "bill77678"]
[Black "Brooms1989"]
[Result "1-0"]
[WhiteElo "1834"]
[BlackElo "1156"]
[TimeControl "300"]
[EndTime "2:03:10 PDT"]
[Termination "bill77678 won by resignation"]

1. e4 {[%clk 0:04:58.2]} 1... e5 {[%clk 0:04:59.7]} 2. Nf3 {[%clk 0:04:56.8]}
2... Nc6 {[%clk 0:04:59.3]} 3. d4 {[%clk 0:04:56.2]} 3... exd4 {[%clk
0:04:58.1]} 4. Bc4 {[%clk 0:04:55.8]} 4... Nf6 {[%clk 0:04:55.7]} 5. e5 {[%clk
0:04:55]} 5... d5 {[%clk 0:04:54.9]} 6. Bb5 {[%clk 0:04:54.1]} 6... Nd7 {[%clk
0:04:51.6]} 7. Bxc6 {[%clk 0:04:43.3]} 7... bxc6 {[%clk 0:04:49.6]} 8. O-O
{[%clk 0:04:36.7]} 8... Bc5 {[%clk 0:04:39.1]} 9. Bg5 {[%clk 0:04:26.9]} 9... f6
{[%clk 0:04:33.3]} 10. exf6 {[%clk 0:04:25.2]} 10... Nxf6 {[%clk 0:04:32.6]} 11.
Re1+ {[%clk 0:04:23.3]} 11... Be7 {[%clk 0:04:30.5]} 12. Nxd4 {[%clk 0:04:14.3]}
12... O-O {[%clk 0:04:27.3]} 13. Nxc6 {[%clk 0:04:12.7]} 13... Qd6 {[%clk
0:04:24.3]} 14. Nxe7+ {[%clk 0:04:11.6]} 1-0

[Event "Live Chess"]
[Site "Chess.com"]
[Date "2024.06.02"]
[Round "-"]
[White "RichardABates"]
[Black "CarmelJane"]
[Result "0-1"]
[WhiteElo "2345"]
[BlackElo "2055"]
[TimeControl "300"]
[EndTime "2:03:11 PDT"]
[Termination "CarmelJane won by resignation"]

1. d4 {[%clk 0:04:50.8]} 1... g6 {[%clk 0:04:59.6]} 2. Nf3 {[%clk 0:04:47.1]}
2... Bg7 {[%clk 0:04:59.5]} 3. c4 {[%clk 0:04:45.3]} 3... c5 {[%clk 0:04:58]} 4.
d5 {[%clk 0:04:44.1]} 4... d6 {[%clk 0:04:54.4]} 5. Nc3 {[%clk 0:04:42.7]} 5...
a6 {[%clk 0:04:51.5]} 6. e4 {[%clk 0:04:36.3]} 6... Nf6 {[%clk 0:04:44.2]} 7. h3
{[%clk 0:04:33.8]} 7... e6 {[%clk 0:04:42]} 8. Bd3 {[%clk 0:04:32.1]} 8... exd5
{[%clk 0:04:39.6]} 9. exd5 {[%clk 0:04:31.2]} 9... O-O {[%clk 0:04:38.9]} 10.
O-O {[%clk 0:04:30]} 10... b5 {[%clk 0:04:33.7]} 11. cxb5 {[%clk 0:04:26.2]}
11... Nbd7 {[%clk 0:04:20.7]} 12. bxa6 {[%clk 0:04:22.7]} 12... Bxa6 {[%clk
0:04:19]} 13. Bf4 {[%clk 0:04:17.8]} 13... c4 {[%clk 0:04:10.1]} 14. Bc2 {[%clk
0:04:15.4]} 14... Nc5 {[%clk 0:04:09.5]} 15. Nd4 {[%clk 0:04:12.3]} 15... Nh5
{[%clk 0:03:53.2]} 16. Nc6 {[%clk 0:03:56.6]} 16... Qd7 {[%clk 0:03:41.7]} 17.
Bh2 {[%clk 0:03:45.5]} 17... Rfe8 {[%clk 0:02:51.4]} 18. Qd2 {[%clk 0:03:39.1]}
18... Nd3 {[%clk 0:02:31.5]} 19. Bxd3 {[%clk 0:03:34.4]} 19... cxd3 {[%clk
0:02:30.9]} 20. Rfe1 {[%clk 0:03:31]} 20... Bc4 {[%clk 0:01:50.4]} 21. Rxe8+
{[%clk 0:03:19.6]} 21... Rxe8 {[%clk 0:01:46.6]} 22. Re1 {[%clk 0:03:17.9]}
22... Bxc3 {[%clk 0:01:38.5]} 23. Qxc3 {[%clk 0:03:04.3]} 23... Bxd5 {[%clk
0:01:33.1]} 24. Nb4 {[%clk 0:02:49.6]} 24... Rxe1+ {[%clk 0:01:26.1]} 25. Qxe1
{[%clk 0:02:47.6]} 25... Bc4 {[%clk 0:01:17.1]} 26. Qc3 {[%clk 0:02:42.9]} 26...
Qe6 {[%clk 0:01:05.3]} 27. Nxd3 {[%clk 0:02:36.8]} 27... Bxd3 {[%clk 0:00:57.8]}
28. Qxd3 {[%clk 0:02:35.5]} 28... Qxa2 {[%clk 0:00:54.4]} 29. Qxd6 {[%clk
0:02:29.9]} 29... Qb1+ {[%clk 0:00:50.3]} 0-1

[Event "Live Chess"]
[Site "Chess.com"]
[Date "2024.06.02"]
[Round "-"]
[White "silunn"]
[Black "matt1979"]
[Result "1-0"]
[WhiteElo "2201"]
[BlackElo "1406"]
[TimeControl "300"]
[EndTime "2:03:58 PDT"]
[Termination "silunn won by resignation"]

1. e4 {[%clk 0:04:59.7]} 1... d6 {[%clk 0:04:58.6]} 2. Nf3 {[%clk 0:04:58.7]}
2... Nf6 {[%clk 0:04:57.3]} 3. Nc3 {[%clk 0:04:58.4]} 3... e5 {[%clk 0:04:51.6]}
4. Bc4 {[%clk 0:04:56.4]} 4... Be7 {[%clk 0:04:50.2]} 5. d3 {[%clk 0:04:52.8]}
5... O-O {[%clk 0:04:48.8]} 6. O-O {[%clk 0:04:50.9]} 6... c6 {[%clk 0:04:45.4]}
7. a4 {[%clk 0:04:49.6]} 7... Qc7 {[%clk 0:04:44.3]} 8. Bg5 {[%clk 0:04:38.8]}
8... Bg4 {[%clk 0:04:40.5]} 9. h3 {[%clk 0:04:29.6]} 9... Bh5 {[%clk 0:04:38.4]}
10. Nb1 {[%clk 0:04:18.9]} 10... Nbd7 {[%clk 0:04:29.5]} 11. Nbd2 {[%clk
0:04:13.8]} 11... b6 {[%clk 0:04:27.5]} 12. c3 {[%clk 0:04:10.1]} 12... a6
{[%clk 0:04:25.9]} 13. a5 {[%clk 0:03:52.3]} 13... b5 {[%clk 0:04:24.6]} 14. Bb3
{[%clk 0:03:50.7]} 14... Nc5 {[%clk 0:04:20.1]} 15. Bc2 {[%clk 0:03:49.1]} 15...
Ne6 {[%clk 0:04:15.3]} 16. Bh4 {[%clk 0:03:42.7]} 16... Nf4 {[%clk 0:03:55.4]}
17. Qe1 {[%clk 0:03:10.7]} 17... Qd7 {[%clk 0:03:47.9]} 18. Nh2 {[%clk
0:02:39.5]} 18... h6 {[%clk 0:03:21]} 19. Bg3 {[%clk 0:02:28.2]} 19... Ng6
{[%clk 0:03:15.2]} 20. Bd1 {[%clk 0:02:23]} 20... Bxd1 {[%clk 0:03:12.7]} 21.
Rxd1 {[%clk 0:02:22.9]} 21... Nh5 {[%clk 0:02:58.1]} 22. Qe3 {[%clk 0:02:15.1]}
22... Nxg3 {[%clk 0:02:56.2]} 23. Qxg3 {[%clk 0:02:13.6]} 23... Bh4 {[%clk
0:02:52.1]} 24. Qg4 {[%clk 0:02:07.5]} 24... Qxg4 {[%clk 0:02:38.5]} 25. Nxg4
{[%clk 0:02:07.4]} 25... Bg5 {[%clk 0:02:34.3]} 26. Nf3 {[%clk 0:02:00.5]} 26...
Be7 {[%clk 0:02:29.4]} 27. Ne3 {[%clk 0:01:57.4]} 27... Nf4 {[%clk 0:02:22.7]}
28. Nf5 {[%clk 0:01:53.5]} 28... Ng6 {[%clk 0:02:14.1]} 29. h4 {[%clk
0:01:47.6]} 29... h5 {[%clk 0:01:55]} 30. g3 {[%clk 0:01:44.6]} 30... Rad8
{[%clk 0:01:49.3]} 31. d4 {[%clk 0:01:34.3]} 31... Rfe8 {[%clk 0:01:31.5]} 32.
dxe5 {[%clk 0:01:21.9]} 32... Nxe5 {[%clk 0:01:27.3]} 33. Nxe5 {[%clk
0:01:15.5]} 33... dxe5 {[%clk 0:01:18.3]} 34. Nxe7+ {[%clk 0:01:14.5]} 34... Kf8
{[%clk 0:01:14.3]} 35. Nxc6 {[%clk 0:01:13.5]} 35... Rc8 {[%clk 0:01:11.2]} 36.
Nb4 {[%clk 0:01:12.2]} 1-0